[Event "61st Mongolian-ch Open 2023"]
[Site "Khovd"]
[Date "2023.05.26"]
[Round "7.1"]
[White "Ulziikhishig Khishigbat"]
[Black "Enkhnar, Enkhbaatar"]
[Result "0-1"]
[ECO "A83"]
[WhiteElo "1601"]
[BlackElo "2360"]
[Annotator "TA"]
[PlyCount "102"]
[EventDate "2023.05.22"]
[EventType "tourn"]
[EventCountry "MGL"]
[SourceTitle "playchess.com"]
[Source "ChessBase"]
[SourceQuality "1"]
[TimeControl "40/5400+30:1800+30"]

{[%evp 12,102,-20,-40,-45,-45,-39,-59,-59,-54,-62,-65,-66,-66,-37,-49,-37,-42,-43,-45,-34,-35,-8,-12,-12,-90,-80,-95,-93,-91,-77,-85,-75,-123,-123,-119,-120,-135,-128,-245,-245,-241,-158,-158,-144,-196,-197,-209,-158,-161,-139,-139,-130,-152,-103,-103,-89,-130,-79,-59,-66,-82,-76,-99,-98,-97,-62,-133,-124,-218,-122,-178,-153,-214,-218,-240,-216,-466,-446,-448,-440,-29959,-29959,-29947,-29948,-12841,-9573,-29986,-6133,-29990,-29991,-29991,-29992]} 1. d4 {[%emt 0:00:05]} f5 {[%emt 0:00:16]} 2. e4 {[%emt 0:00:12]} fxe4 {[%emt 0:00:05]} 3. Nc3 {[%emt 0:00:07]} Nf6 {[%emt 0:00:05]} 4. Bg5 {[%emt 0:00:12]} c6 {[%emt 0:00:04]} 5. Bxf6 {[%emt 0:01:19]} exf6 {[%emt 0:00:05]} 6. Nxe4 {[%emt 0:00:23]} d5 {[%emt 0:00:16]} 7. Ng3 {[%emt 0:00:13]} Qe7+ {[%emt 0:00:34] A83: Dutch Defence: Staunton Gambit with 3 Nc3 Nf6 4 Bg5.} 8. Qe2 {[%emt 0:00:26]} Kf7 {[%emt 0:00:19]} (8... Qxe2+ {simplifies} 9. Bxe2 g6 10. h4 h5) 9. O-O-O {[%emt 0:00:12]} Qxe2 {[%emt 0:00:08] Black is slightly better.} 10. Bxe2 {[%emt 0:00:41]} g6 {[%emt 0:00:08]} 11. h4 {[%emt 0:01:01]} h5 {[%emt 0:00:18]} 12. Bd3 {[%emt 0:00:16] [#]} Bd6 $146 {[%emt 0:02:01]} ({Predecessor:} 12... Bh6+ 13. Kb1 Nd7 14. Rf1 Kg7 15. N3e2 Nb6 16. b3 Re8 17. Nh3 Nd7 18. Nef4 Nf8 {0-1 Zulfic,F (2160)-Zhao,Z (2529) Gold Coast op 2019 (4)}) 13. N3e2 {[%emt 0:00:12]} Na6 {[%emt 0:02:40]} 14. a3 {[%emt 0:02:17] Prevents Nb4.} Nc7 {[%emt 0:00:30]} 15. Nh3 {[%emt 0:00:07]} Bg4 {[%emt 0:00:28]} 16. f3 {[%emt 0:00:18]} Bf5 {[%emt 0:02:04]} 17. Bxf5 {[%emt 0:02:39]} gxf5 {[%emt 0:00:06]} 18. Nef4 {[%emt 0:00:06]} (18. g3 $11) 18... Ne6 $17 {[%emt 0:00:24]} 19. Nxe6 {[%emt 0:00:43]} Kxe6 {[%emt 0:00:04]} 20. Rde1+ {[%emt 0:00:12]} Kf7 {[%emt 0:00:39]} 21. Re2 {[%emt 0:00:20]} Bg3 {[%emt 0:01:04]} 22. Nf2 {[%emt 0:00:49]} (22. Kd1 $142) 22... Rae8 {[%emt 0:00:35]} 23. Rd2 {[%emt 0:02:47]} Bf4 {[%emt 0:00:42][%cal Oe8e2]} 24. Nd3 {[%emt 0:00:13]} Be3 {[%emt 0:04:09][%cal Oh8g8]} 25. c3 {[%emt 0:00:05]} Rhg8 $1 $19 {[%emt 0:01:11]} (25... Bxd2+ 26. Kxd2 Ke7 27. g3 $17) 26. Rh2 {[%emt 0:00:05]} b6 {[%emt 0:03:05][%cal Oc6c5,Bb7b6,Bb6c5,Bc5c4][%mdl 32]} ({And not} 26... Bxd2+ 27. Kxd2 Rg7 28. Nf4 $17) 27. Kd1 {[%emt 0:00:18]} c5 {[%emt 0:01:54]} 28. dxc5 {[%emt 0:04:37]} (28. Rc2 $17 {was called for.}) 28... bxc5 {[%emt 0:01:19] Hoping for ...c4.} ({Inferior is} 28... Bxd2 29. Kxd2 bxc5 30. Nxc5 $17) 29. Rc2 {[%emt 0:00:09]} c4 {[%emt 0:01:19]} 30. Nc1 {[%emt 0:01:29]} Bf4 {[%emt 0:02:02]} 31. Rh1 {[%emt 0:00:06]} Re3 {[%emt 0:01:20] Black is much more active.} 32. Rf2 {[%emt 0:02:31]} Rge8 {[%emt 0:01:14]} ({Black should try} 32... Re5 33. b4 a5 34. bxa5 d4 35. cxd4 Rxa5) 33. Re2 {[%emt 0:00:07]} Rb8 {[%emt 0:00:46]} 34. Rhe1 {[%emt 0:00:46]} Rxe2 {[%emt 0:00:44]} (34... Re5 $142 35. a4 a5) 35. Rxe2 $17 {[%emt 0:00:11][%mdl 4096] Endgame KRB-KRN} a5 {[%emt 0:01:52]} 36. Kc2 {[%emt 0:00:23]} Rg8 {[%emt 0:01:03]} 37. b4 {[%emt 0:01:21]} axb4 {[%emt 0:02:06]} 38. axb4 {[%emt 0:00:13]} Bg3 {[%emt 0:00:34]} 39. Rd2 {[%emt 0:02:29]} (39. Kd2 $1 $15) 39... Bxh4 {[%emt 0:00:14]} 40. b5 {[%emt 0:00:00] [#]} (40. Kd1 $17 {is a better defense.}) 40... Be1 {[%emt 0:00:00]} (40... Bg5 $1 $19 {[%cal Rg5d2]} 41. Re2 (41. Rxd5 $2 {perishes.} Be3 $19) 41... Rb8) 41. Re2 {[%emt 0:01:57]} (41. Rxd5 $17 Rxg2+ 42. Kd1 Bxc3 43. Ne2) 41... Bg3 $19 {[%emt 0:01:40]} 42. Na2 {[%emt 0:00:16]} (42. b6 $17) 42... Bd6 {[%emt 0:01:24]} 43. Rd2 {[%emt 0:01:48]} Bc5 {[%emt 0:00:37]} 44. Rxd5 $2 {[%emt 0:01:15]} (44. Kb2) 44... Rxg2+ {[%emt 0:00:12]} 45. Kb1 {[%emt 0:00:01]} Be3 {[%emt 0:01:31] ...h4 is the strong threat.} 46. Rxf5 {[%emt 0:01:43] [#]} (46. Rd7+ $19 Kg6 47. Rd8) 46... Kg6 {[%emt 0:00:22]} 47. Rd5 {[%emt 0:00:01]} h4 {[%emt 0:00:09]} 48. Rd8 {[%emt 0:00:07]} h3 {[%emt 0:00:11] ( -> ...h2)} 49. Rh8 {[%emt 0:00:06]} h2 {[%emt 0:00:13]} (49... Bh6 $142 50. Nc1 h2 51. Rg8+ Bg7 52. f4 h1=Q 53. f5+ Kh6 54. Ra8 Rg1 55. Kb2 Qxa8 56. b6 Rg2+ 57. Kb1 Qa3 58. Ne2 Rxe2 59. b7 Qb2#) 50. Nb4 {[%emt 0:00:05]} Bh6 {[%emt 0:00:16][%cal Rh2h1]} 51. Rg8+ {[%emt 0:00:09]} Bg7 {[%emt 0:00:04] Weighted Error Value: White=0.71/Black=0.22 (precise)} 0-1

[Event "61st Mongolian-ch Open 2023"]
[Site "Khovd"]
[Date "2023.05.26"]
[Round "7.2"]
[White "Bulgankhan Ganzorig"]
[Black "Amartuvshin, Ganzorig"]
[Result "1-0"]
[ECO "E14"]
[WhiteElo "2017"]
[BlackElo "2407"]
[Annotator "TA"]
[PlyCount "71"]
[EventDate "2023.05.22"]
[EventType "tourn"]
[EventCountry "MGL"]
[SourceTitle "playchess.com"]
[Source "ChessBase"]
[SourceQuality "1"]
[TimeControl "40/5400+30:1800+30"]

{[%evp 19,71,-3,16,9,9,14,16,14,13,0,6,0,29,21,55,54,103,40,46,40,33,35,28,26,73,48,65,56,104,108,171,103,102,47,83,39,77,71,68,76,437,423,337,300,297,297,356,208,643,639,595,587,2750,2656]} 1. Nf3 {[%emt 0:00:04]} Nf6 {[%emt 0:00:06]} 2. c4 {[%emt 0:00:08]} e6 {[%emt 0:00:05]} 3. e3 {[%emt 0:00:10]} d5 {[%emt 0:01:57]} 4. b3 {[%emt 0:00:16]} Bd6 {[%emt 0:01:09]} 5. Bb2 {[%emt 0:00:07]} O-O {[%emt 0:00:26]} 6. d4 {[%emt 0:03:51]} b6 {[%emt 0:00:21]} 7. Bd3 {[%emt 0:00:07]} Bb7 {[%emt 0:00:23]} 8. O-O {[%emt 0:00:09]} Nbd7 {[%emt 0:00:26]} 9. Nbd2 {[%emt 0:01:32]} Qe7 {[%emt 0:07:26]} 10. Ne5 {[%emt 0:02:51]} c5 {[%emt 0:08:52]} 11. cxd5 {[%emt 0:02:15] E14: Queen's Indian: Classical Variation (4 e3).} exd5 {[%emt 0:01:44][%cal Rd7e5]} 12. Nxd7 {[%emt 0:00:08]} Nxd7 {[%emt 0:00:09]} (12... Qxd7 13. dxc5 Be7 14. b4 $16) 13. Qh5 {[%emt 0:01:01][%csl Gd3][%cal Rh5h7] The position is equal.} g6 {[%emt 0:07:16]} 14. Qh6 {[%emt 0:01:02][%cal Oe3e4]} cxd4 {[%emt 0:06:53]} 15. Bxd4 {[%emt 0:00:14][%csl Gd4][%cal Rh6g7]} Be5 {[%emt 0:00:05] Dodges Qg7+} 16. Nf3 $40 {[%emt 0:00:09][%mdl 128] White has some attack.} Bxd4 {[%emt 0:00:14]} 17. exd4 {[%emt 0:00:08] Strongly threatening Ng5.} (17. Nxd4 Nc5 18. Be2 Ne6 $11) 17... Rfc8 {[%emt 0:01:32] [#]} (17... Nf6 $14) 18. Rfe1 $146 {[%emt 0:00:34]} ({Much weaker is} 18. Ng5 $6 Nf6 $14) ({White should try} 18. Rae1 $16 Qd6 19. Re3 (19. Ng5 Nf6 $14) (19. Bf5 Rc7 $11)) ({Predecessor:} 18. Rae1 Qf6 19. Re3 Nf8 20. Ne5 Qg7 21. Qh4 Rc7 22. Rfe1 Kh8 23. h3 {1-0 Akesson,R (2392)-Sorensen,H (2176) Deltalift op 2018 (5)}) 18... Qd6 $14 {[%emt 0:07:27]} 19. h4 {[%emt 0:06:03]} Nf6 {[%emt 0:12:13]} 20. Ne5 {[%emt 0:00:13]} Rc7 {[%emt 0:03:29]} 21. Re3 {[%emt 0:05:33]} Qf8 {[%emt 0:05:03]} (21... Qb4 $11) 22. Qg5 {[%emt 0:01:28] White has more active pieces.} Nh5 {[%emt 0:02:26] And now ...f6 would win.} 23. Rf3 {[%emt 0:01:49]} f6 {[%emt 0:19:24] [#]} (23... Qb4 $14 24. Ng4 Re8) 24. Qd2 $1 $16 {[%emt 0:04:54][%cal Oe5g6] Threatens to win with Nxg6!} Qg7 {[%emt 0:05:57] [#]} (24... Rg7 $16) 25. Ng4 {[%emt 0:00:19]} ({Better is} 25. Nxg6 $1 $18 {[%cal Og2g4] Hoping for g4!} hxg6 26. g4) 25... Kh8 {[%emt 0:00:03]} 26. Re1 {[%emt 0:05:16]} (26. Rc1 $16) 26... f5 {[%emt 0:00:49] [#]} 27. Rfe3 $1 {[%emt 0:02:06] Black must now prevent Re8+.} Rf8 {[%emt 0:00:09] Against Re8} (27... Rg8 28. Ne5) 28. Ne5 {[%emt 0:04:40]} Nf6 {[%emt 0:00:28]} 29. Rg3 {[%emt 0:01:14] Bxf5 is the strong threat.} Kg8 $2 {[%emt 0:03:28][%mdl 8192] Loses the game.} (29... Bc8 $16) 30. Bxf5 $18 {[%emt 0:00:21][%cal Bd3f5,Bf5e6,Be6f7][%mdl 96] Pin} Nh5 {[%emt 0:01:40]} 31. Be6+ {[%emt 0:02:18]} Kh8 {[%emt 0:00:05]} 32. Rf3 {[%emt 0:00:28]} Nf6 {[%emt 0:00:29]} 33. Qb4 {[%emt 0:02:01]} (33. Qf4 $142) 33... Re8 $2 {[%emt 0:02:07] [#]} (33... Qe7 34. Qxe7 Rxe7) 34. Nf7+ $1 {[%emt 0:01:41][%mdl 512] White is clearly winning.} Rxf7 {[%emt 0:01:05]} 35. Bxf7 {[%emt 0:00:05][%mdl 64] Discovered Attack} Re4 {[%emt 0:00:22]} 36. Rxe4 {[%emt 0:00:17] Weighted Error Value: White=0.21 (precise) /Black=0.48} 1-0

[Event "61st Mongolian-ch Open 2023"]
[Site "Khovd"]
[Date "2023.05.26"]
[Round "7.3"]
[White "Amilal Munkhdalai"]
[Black "Gan-Erdene, Sugar"]
[Result "1/2-1/2"]
[ECO "B30"]
[WhiteElo "2141"]
[BlackElo "2420"]
[Annotator "TA"]
[PlyCount "144"]
[EventDate "2023.05.22"]
[EventType "tourn"]
[EventCountry "MGL"]
[SourceTitle "playchess.com"]
[Source "ChessBase"]
[SourceQuality "1"]
[TimeControl "40/5400+30:1800+30"]

{[%evp 9,144,10,22,15,24,27,33,24,30,8,10,15,17,-7,0,-4,0,-4,0,-41,0,-22,10,10,10,10,10,-7,0,-10,10,10,10,10,10,12,13,21,27,27,32,25,35,0,42,8,58,62,63,48,56,40,70,56,70,70,66,70,71,70,70,72,78,53,60,73,53,67,78,68,78,63,70,70,71,0,58,0,71,0,77,0,70,72,83,81,98,98,98,85,85,76,76,84,77,76,102,60,109,102,102,96,109,109,108,57,149,120,127,115,164,164,168,125,171,164,439,338,345,255,259,267,512,566,500,529,448,199,208,205,178,161,168,7,8,0,160]} 1. e4 {[%emt 0:00:02]} c5 {[%emt 0:00:06]} 2. Nf3 {[%emt 0:00:05]} Nc6 {[%emt 0:00:05]} 3. Bb5 {[%emt 0:00:05]} Nf6 {[%emt 0:00:06]} 4. Bxc6 {[%emt 0:01:43]} dxc6 {[%emt 0:00:08]} 5. Nc3 {[%emt 0:00:26]} Bg4 {[%emt 0:02:01]} 6. h3 {[%emt 0:00:22] B30: Sicilian: 2...Nc6 3 Bb5, lines without ...g6.} Bxf3 {[%emt 0:02:42]} 7. Qxf3 {[%emt 0:00:07]} Nd7 {[%emt 0:00:13] [#]} 8. O-O $146 {[%emt 0:06:16] White is slightly better.} ({Predecessor:} 8. d3 g6 9. Qe2 Bg7 10. f4 Bd4 11. e5 Bxc3+ 12. bxc3 Qa5 13. Bd2 c4 14. e6 fxe6 15. Qxe6 cxd3 16. cxd3 {½-½ Migot,T (2397)-Le Corre,B (2303) Nancy Meurthe-B 2016 (6)}) 8... g6 {[%emt 0:00:10]} 9. b3 {[%emt 0:08:37]} Bg7 {[%emt 0:00:27]} 10. Bb2 {[%emt 0:00:09]} Nf8 {[%emt 0:10:51]} 11. Rfd1 {[%emt 0:00:39]} e5 {[%emt 0:01:11]} 12. Ne2 {[%emt 0:05:03][%cal Bc3e2,Be2g3,Bg3f1,Bf1d2,Bd2c4][%mdl 32]} Ne6 {[%emt 0:00:25]} 13. d3 {[%emt 0:00:44]} O-O {[%emt 0:01:21]} 14. Ng3 {[%emt 0:01:19]} Qe7 {[%emt 0:03:56]} 15. a4 {[%emt 0:01:39]} a5 {[%emt 0:03:11]} 16. Re1 {[%emt 0:00:38]} Rad8 {[%emt 0:02:21]} 17. Bc3 {[%emt 0:02:47]} b6 {[%emt 0:07:28]} 18. Nf1 {[%emt 0:10:04]} Nd4 {[%emt 0:05:30]} 19. Qd1 {[%emt 0:08:57]} Kh8 {[%emt 0:06:19]} 20. Rb1 {[%emt 0:03:35]} Ne6 {[%emt 0:11:49]} 21. Nd2 {[%emt 0:01:21]} Qc7 {[%emt 0:00:49]} 22. Nc4 {[%emt 0:00:44]} Rde8 {[%emt 0:00:32]} 23. Ra1 {[%emt 0:04:56]} Kg8 {[%emt 0:02:08]} 24. Qc1 {[%emt 0:05:39]} Nf4 {[%emt 0:01:36]} 25. Re3 {[%emt 0:05:09]} Re6 {[%emt 0:04:07][%cal Of4d5]} 26. Qf1 {[%emt 0:01:28]} Nh5 {[%emt 0:02:47]} (26... Nd5 $5 27. exd5 cxd5 $11) 27. g3 {[%emt 0:04:27]} Bh6 {[%emt 0:04:50]} (27... f5 $11) 28. Re2 $14 {[%emt 0:01:12]} Rfe8 {[%emt 0:02:59]} 29. Qg2 {[%emt 0:01:22]} Ng7 {[%emt 0:01:33]} 30. Qf3 {[%emt 0:05:56]} Qd8 {[%emt 0:04:55]} 31. h4 {[%emt 0:00:47]} Nh5 {[%emt 0:01:19]} 32. Kg2 {[%emt 0:06:43]} Nf6 {[%emt 0:01:20]} 33. Ree1 {[%emt 0:00:53]} Bg7 {[%emt 0:01:05]} 34. Bd2 {[%emt 0:01:21]} h6 {[%emt 0:01:24]} 35. Rh1 {[%emt 0:00:38]} Qc7 {[%emt 0:00:59]} 36. Ne3 {[%emt 0:01:34][%cal Oh4h5] White is much more active.} h5 {[%emt 0:00:35]} 37. Qe2 {[%emt 0:04:10]} Bh6 {[%emt 0:05:55]} 38. Rhf1 {[%emt 0:00:51]} Qd8 {[%emt 0:01:54]} 39. Rae1 {[%emt 0:02:04]} Nh7 {[%emt 0:03:02]} 40. Qf3 {[%emt 0:00:00]} Rf8 {[%emt 0:00:00]} 41. Bc3 {[%emt 0:04:42]} Rfe8 {[%emt 0:06:10]} 42. Bd2 {[%emt 0:02:03]} (42. Qe2 $16) 42... Nf8 {[%emt 0:02:34]} (42... Rf8 $1 $11) 43. Bc3 {[%emt 0:00:36]} Nh7 $1 {[%emt 0:12:23]} 44. Bd2 {[%emt 0:01:09]} (44. Nc4 $16) 44... Qd4 {[%emt 0:00:33]} (44... Nf8 $11) 45. Qe2 {[%emt 0:01:15]} (45. Qd1 $16) 45... Bxe3 {[%emt 0:05:08]} (45... Qd8 $1 $11) 46. Bxe3 {[%emt 0:00:57]} Qd7 {[%emt 0:00:49]} 47. Bd2 {[%emt 0:01:06]} Rd6 {[%emt 0:01:21]} 48. Bc3 {[%emt 0:00:32]} Nf6 {[%emt 0:03:05]} 49. Qe3 {[%emt 0:00:29]} Ng4 {[%emt 0:01:15]} 50. Qg5 {[%emt 0:00:44]} Kh7 {[%emt 0:01:26]} 51. Qc1 {[%emt 0:02:38]} Rde6 {[%emt 0:03:56]} 52. Re2 {[%emt 0:01:11][%cal Be1e2,Be2f2,Bf2f4,Bf4f6][%mdl 32]} Kg8 {[%emt 0:00:49]} 53. Qg5 {[%emt 0:01:03]} Qe7 {[%emt 0:02:21]} (53... Kh7 $14) 54. f3 {[%emt 0:00:53]} (54. Qxe7 {simplifies} R8xe7 55. f3 Nf6 56. Ref2) 54... Nf6 {[%emt 0:00:05]} 55. Ref2 {[%emt 0:01:25]} (55. Qh6 {is interesting.} Rd6 56. g4 Nh7 57. Bd2) 55... Nh7 {[%emt 0:00:17]} 56. Qxe7 {[%emt 0:02:59]} R6xe7 {[%emt 0:00:22]} 57. f4 {[%emt 0:04:17]} (57. g4 $16) 57... exf4 {[%emt 0:00:38]} ({Black should try} 57... Nf6 $1 $14) 58. Rxf4 {[%emt 0:00:13]} Nf8 {[%emt 0:00:31]} 59. Rf6 {[%emt 0:00:47]} Rc8 {[%emt 0:00:25] [#]} (59... Ne6 $16 {was necessary.}) 60. g4 $1 $18 {[%emt 0:02:28][%mdl 512]} hxg4 {[%emt 0:00:20]} 61. Kg3 {[%emt 0:01:46]} (61. R6f4 $6 Ne6 62. Rxg4 Ng7 $16) 61... Ne6 {[%emt 0:00:24]} (61... c4 $16) 62. h5 $1 {[%emt 0:04:11][%cal Bh4h5,Bh5h6][%mdl 32]} ({Don't play} 62. Kxg4 $6 Ng7 $14) 62... Ng7 $2 {[%emt 0:00:40]} (62... gxh5 {is a better defense.} 63. R1f5 Nd4) 63. h6 {[%emt 0:00:16]} ({Not} 63. Kxg4 Nxh5 64. Rd6 Rec7 $11) 63... Nh5+ {[%emt 0:00:28]} 64. Kxg4 {[%emt 0:00:08][%cal Oh6h7] aiming for h7+!} Rcc7 {[%emt 0:00:22]} (64... Nxf6+ $2 65. Bxf6 $18) 65. Rd6 {[%emt 0:02:08] White threatens Rd8+ and mate.} Red7 $2 {[%emt 0:01:44] Wards off Rd8+} (65... Rc8 66. Bf6 Rb7 67. Rd8+ Rxd8 68. Bxd8 Kh7) 66. e5 {[%emt 0:00:58]} ({Less strong is} 66. Rxd7 Rxd7 67. e5 Re7 $18) 66... Kh7 {[%emt 0:00:27]} 67. Rxd7 {[%emt 0:01:22]} Rxd7 {[%emt 0:00:05] [#] KRB-KRN} 68. e6 $1 {[%emt 0:00:43][%mdl 512]} fxe6 {[%emt 0:00:34]} 69. Rf8 {[%emt 0:00:06][%csl Gc3][%cal Rf8h8]} Kxh6 {[%emt 0:00:27]} 70. Rh8+ {[%emt 0:01:46]} Rh7 {[%emt 0:00:04] [#]} 71. Bd2+ $2 {[%emt 0:00:14]} (71. Rxh7+ $1 $18 Kxh7 72. Be5) 71... Kg7 $11 {[%emt 0:00:05]} 72. Bc3+ $2 {[%emt 0:00:07]} ({Better is} 72. Rxh7+ $11 Kxh7 73. Kg5) 72... Kh6 {[%emt 0:00:03] Weighted Error Value: White=0.14 (very precise) /Black=0.15 (very precise)} 1/2-1/2

[Event "61st Mongolian-ch Open 2023"]
[Site "Khovd"]
[Date "2023.05.26"]
[Round "7.4"]
[White "Munkhzul, Turmunkh"]
[Black "Munguntuul, Batkhuyag"]
[Result "1/2-1/2"]
[ECO "B13"]
[WhiteElo "2318"]
[BlackElo "2408"]
[Annotator "TA"]
[PlyCount "80"]
[EventDate "2023.05.22"]
[EventType "tourn"]
[EventCountry "MGL"]
[SourceTitle "playchess.com"]
[Source "ChessBase"]
[SourceQuality "1"]
[TimeControl "40/5400+30:1800+30"]

{[%evp 12,80,12,15,26,16,19,13,21,21,22,17,36,26,35,27,18,14,16,8,13,14,13,18,24,15,12,6,18,11,8,1,14,7,5,0,9,5,9,12,15,8,21,4,14,0,0,3,5,5,10,5,9,0,0,0,0,0,0,0,0,0,0,0,0,0,0,0,0,0,0]} 1. d4 {[%emt 0:00:08]} d5 {[%emt 0:00:03]} 2. Bf4 {[%emt 0:00:25]} c5 {[%emt 0:00:33]} 3. e3 {[%emt 0:00:30][%cal Be2e3,Be3d4][%mdl 32]} Nc6 {[%emt 0:00:07]} 4. c3 {[%emt 0:01:48]} cxd4 {[%emt 0:00:06]} 5. exd4 {[%emt 0:01:51]} Nf6 {[%emt 0:00:13]} 6. Bd3 {[%emt 0:01:15]} Bg4 {[%emt 0:00:23]} 7. Qb3 {[%emt 0:00:47]} e5 {[%emt 0:06:43] B13: Caro-Kann: Exchange Variation and Panov-Botvinnik Attack.} 8. dxe5 {[%emt 0:08:43]} (8. h3 $5) 8... Nh5 {[%emt 0:16:51]} 9. Be3 {[%emt 0:11:14]} Nxe5 {[%emt 0:00:45]} 10. Bb5+ {[%emt 0:00:33]} Nc6 {[%emt 0:01:12]} 11. Be2 {[%emt 0:08:19]} Bxe2 {[%emt 0:06:47]} 12. Nxe2 {[%emt 0:00:17]} Qd7 {[%emt 0:00:08]} 13. O-O {[%emt 0:02:06] [#]} Be7 $146 {[%emt 0:10:53]} ({Predecessor:} 13... Na5 14. Qc2 Bd6 15. Bd4 O-O 16. Nd2 Rfe8 17. Nf3 h6 18. Ng3 Nf4 19. Rfe1 Nc6 {½-½ Asgharpourmasoleh,T (1855)-Mobarhani,N (1852) IRI-ch (Women) 2017 (6)}) 14. Rd1 {[%emt 0:05:52]} Rd8 {[%emt 0:00:23]} 15. Nd2 {[%emt 0:01:07]} O-O {[%emt 0:00:16]} 16. Nf3 {[%emt 0:01:21]} h6 {[%emt 0:06:10]} 17. Ned4 {[%emt 0:10:09]} Na5 {[%emt 0:07:11]} 18. Qc2 {[%emt 0:03:35]} (18. Qb5 $5 {[%cal Rb5a5]} Nc4 19. Qxd7 Rxd7 20. Nf5 Nxe3 21. Nxe3 $11 (21. fxe3 Re8 $11)) 18... Nc4 {[%emt 0:00:06] The position is equal.} 19. Nf5 {[%emt 0:01:40][%cal Od1d5] [#] Hoping for Rxd5!} Rfe8 {[%emt 0:03:50]} 20. Bd4 {[%emt 0:02:46][%cal Od4g7] Bxg7! would be deadly.} ({Reject} 20. Bxa7 b6 21. Re1 Bc5 $17) 20... Bf6 {[%emt 0:01:42]} 21. Ng3 {[%emt 0:06:29]} (21. Bxa7 $2 {perishes.} b6 22. N3d4 Ra8 23. Bxb6 Nxb6 $17) 21... Nxg3 {[%emt 0:04:27]} (21... Bxd4 {simplifies} 22. Nxd4 Nxg3 23. hxg3 Qc7) 22. hxg3 {[%emt 0:00:13] Black must now prevent Bxf6.} Qc6 {[%emt 0:07:00]} 23. Re1 {[%emt 0:04:23]} a6 {[%emt 0:06:55]} 24. Rad1 {[%emt 0:03:48]} Re4 {[%emt 0:06:27]} 25. Bxf6 {[%emt 0:01:45]} Rxe1+ {[%emt 0:00:24]} 26. Rxe1 {[%emt 0:00:47]} Qxf6 {[%emt 0:00:02]} 27. Nd4 {[%emt 0:01:29]} g6 {[%emt 0:01:45]} 28. Re2 {[%emt 0:01:53]} Kg7 {[%emt 0:02:21]} 29. Qd1 {[%emt 0:02:06]} Rd7 {[%emt 0:02:53]} 30. Nf3 {[%emt 0:05:23]} Rd6 {[%emt 0:02:44]} 31. b3 {[%emt 0:03:01]} Na5 {[%emt 0:01:45]} 32. Rd2 {[%emt 0:04:28]} Qxc3 {[%emt 0:01:18]} 33. Rxd5 {[%emt 0:00:22]} Rxd5 {[%emt 0:00:31]} 34. Qxd5 $11 {[%emt 0:00:05][%mdl 4096] Endgame KQN-KQN} Nc6 {[%emt 0:00:07]} 35. Qd7 {[%emt 0:00:56]} Qa1+ {[%emt 0:02:14]} 36. Kh2 {[%emt 0:00:06]} Ne5 {[%emt 0:00:10]} 37. Nxe5 {[%emt 0:01:06]} (37. Qxb7 {is a self mate.} Ng4+ 38. Kh3 Nxf2+ 39. Kh4 Qh1+) 37... Qxe5 {[%emt 0:00:03]} 38. Qxb7 {[%emt 0:00:27]} Qh5+ {[%emt 0:00:05]} 39. Kg1 {[%emt 0:00:03]} Qd1+ {[%emt 0:00:06]} 40. Kh2 {[%emt 0:00:00]} Qh5+ {[%emt 0:00:00] Weighted Error Value: White=0.04 (flawless) /Black=0.02 (flawless)} 1/2-1/2